bitfinex/quotes_BTCUSD_20240718
["timestamp","ask_amount","ask_price","bid_price","bid_amount"]
[1721284753323,0.078801,64972.0,64971.0,2.76163253]
[1721284753543,0.078801,64972.0,64971.0,2.94300042]
[1721284754043,0.078801,64972.0,64971.0,2.94297292]
[1721284754707,0.078801,64972.0,64971.0,2.94296821]
[1721284756055,0.078801,64972.0,64971.0,2.62047153]
[1721284756288,0.140701,64972.0,64971.0,2.27731021]
[1721284756513,0.140701,64972.0,64971.0,2.34721021]
[1721284756731,0.140701,64972.0,64971.0,2.16588707]
[1721284756953,0.140701,64972.0,64971.0,2.15188707]
[1721284757387,0.140701,64972.0,64971.0,2.16588707]
[1721284757616,0.140701,64972.0,64971.0,2.34730157]
[1721284757848,0.140701,64972.0,64971.0,2.33330157]
[1721284758067,0.140701,64972.0,64971.0,2.34730157]
[1721284758293,0.140701,64972.0,64971.0,2.26340157]
[1721284758509,0.140701,64972.0,64971.0,2.27740157]
[1721284758733,0.140701,64972.0,64971.0,2.09598707]
[1721284758996,0.140701,64972.0,64971.0,2.27740157]
[1721284759414,0.140701,64972.0,64971.0,2.09598707]
[1721284759638,0.140701,64972.0,64971.0,2.27740157]
[1721284759881,0.140701,64972.0,64971.0,2.2769793]
[1721284763101,0.140701,64972.0,64971.0,1.96821259]
[1721284763298,0.140701,64972.0,64971.0,2.27690524]
[1721284763771,0.140701,64972.0,64971.0,2.27689914]
[1721284764668,0.140701,64972.0,64971.0,2.32689914]
[1721284766044,0.140701,64972.0,64971.0,2.27689914]
[1721284766506,0.140701,64972.0,64971.0,2.27682866]
[1721284767141,0.140701,64972.0,64971.0,2.32682866]
[1721284767380,0.078801,64972.0,64971.0,2.32682866]
[1721284768069,1e-06,64972.0,64971.0,2.69715766]
[1721284768290,1e-06,64972.0,64971.0,2.69732214]
[1721284769649,1e-06,64972.0,64971.0,2.43447331]
[1721284769872,1e-06,64972.0,64971.0,2.69741613]
[1721284770098,1e-06,64972.0,64971.0,2.63491613]
[1721284770578,1e-06,64972.0,64971.0,2.58491613]
[1721284770813,0.145801,64972.0,64971.0,2.58491613]
[1721284772564,0.145801,64972.0,64971.0,2.63084785]
[1721284772783,0.145801,64972.0,64971.0,2.5846788]
[1721284772991,0.145801,64972.0,64971.0,2.6806552]
[1721284773241,0.082701,64972.0,64971.0,2.32604159]
[1721284773450,0.082701,64972.0,64971.0,2.68059853]
[1721284774510,0.082701,64972.0,64971.0,2.63462141]
[1721284775033,0.082701,64972.0,64971.0,2.62062141]
[1721284775251,0.082701,64972.0,64971.0,2.66661369]
[1721284775456,0.082701,64972.0,64971.0,2.62062141]
[1721284776092,0.082701,64972.0,64971.0,2.62061502]
[1721284776319,0.082701,64972.0,64971.0,2.63461502]
[1721284776529,0.082701,64972.0,64971.0,2.62061502]
[1721284776740,0.082701,64972.0,64971.0,2.55752802]
[1721284776949,0.082701,64972.0,64971.0,2.57152802]
[1721284777160,0.082701,64972.0,64971.0,2.6315319]
[1721284777365,0.147001,64972.0,64971.0,2.3237029]
[1721284777581,0.147001,64972.0,64971.0,2.27769902]
[1721284778497,0.147001,64972.0,64971.0,2.34759902]
[1721284779469,0.147001,64972.0,64971.0,2.34730548]
[1721284780142,0.147001,64972.0,64971.0,2.21627665]
[1721284780360,0.147001,64972.0,64971.0,2.34730548]
[1721284780929,0.147001,64972.0,64971.0,2.39329053]
[1721284782059,0.147001,64972.0,64971.0,2.34730548]
[1721284782494,1e-06,64972.0,64971.0,2.26935404]
[1721284782722,1e-06,64972.0,64971.0,2.80727312]
[1721284782939,1e-06,64972.0,64971.0,2.73849761]
[1721284783155,1e-06,64972.0,64971.0,2.80744263]
[1721284783615,1e-06,64972.0,64971.0,3.11527163]
[1721284783833,1e-06,64972.0,64971.0,3.27093441]
[1721284784051,1e-06,64972.0,64971.0,3.2709344]
[1721284784281,1e-06,64972.0,64971.0,3.38584122]
[1721284785173,1e-06,64972.0,64971.0,3.362868]
[1721284785398,1e-06,64972.0,64971.0,3.20316021]
[1721284785778,1e-06,64972.0,64971.0,3.1174415]
[1721284786002,1e-06,64972.0,64971.0,3.29797389]
[1721284786229,1e-06,64972.0,64971.0,3.20604167]
[1721284786447,1e-06,64972.0,64971.0,3.26992546]
[1721284787603,1e-06,64972.0,64971.0,3.26992528]
[1721284788040,1e-06,64972.0,64971.0,3.38484056]
[1721284788265,1e-06,64972.0,64971.0,3.26992528]
[1721284788720,1e-06,64972.0,64971.0,3.38484056]
[1721284788946,1e-06,64972.0,64971.0,3.269975]
[1721284789177,1e-06,64972.0,64971.0,3.38491817]
[1721284790084,1e-06,64972.0,64971.0,3.2699734]
[1721284790541,1e-06,64972.0,64971.0,3.38491817]
[1721284791201,1e-06,64972.0,64971.0,3.2699734]
[1721284791433,1e-06,64972.0,64971.0,3.38500097]
[1721284791664,1e-06,64972.0,64971.0,3.2699734]
[1721284792169,1e-06,64972.0,64971.0,2.92870996]
[1721284792391,1e-06,64972.0,64971.0,3.26986997]
[1721284792622,1e-06,64972.0,64971.0,3.26987042]
[1721284793531,0.080501,64972.0,64971.0,3.38490289]
[1721284795313,0.080501,64972.0,64971.0,3.11013451]
[1721284797799,0.080501,64972.0,64971.0,3.26984222]
[1721284798020,0.080501,64972.0,64971.0,3.38488867]
[1721284798464,0.080501,64972.0,64971.0,3.38491351]
[1721284799176,0.080501,64972.0,64971.0,3.26987022]
[1721284799810,0.080501,64972.0,64971.0,3.38492128]
[1721284800066,0.080501,64972.0,64971.0,3.26987022]
[1721284800933,1e-06,64972.0,64971.0,3.26987022]
[1721284801170,1e-06,64972.0,64971.0,3.2699716]
[1721284801615,1e-06,64972.0,64971.0,2.55656644]
[1721284801847,1e-06,64972.0,64971.0,3.27006695]
[1721284804567,1e-06,64972.0,64971.0,3.27003255]
[1721284805280,1e-06,64972.0,64971.0,3.25603255]
[1721284805500,1e-06,64972.0,64971.0,3.27003255]
[1721284805923,1e-06,64972.0,64971.0,3.25603255]
[1721284806157,1e-06,64972.0,64971.0,3.25602518]
[1721284806400,1e-06,64972.0,64971.0,3.27002518]
[1721284806628,1e-06,64972.0,64971.0,3.25602518]
[1721284806852,1e-06,64972.0,64971.0,3.27002518]
[1721284807099,1e-06,64972.0,64971.0,3.25602518]
[1721284807327,1e-06,64972.0,64971.0,3.25602506]
[1721284807538,1e-06,64972.0,64971.0,3.27002506]
[1721284808394,1e-06,64972.0,64971.0,3.33482506]
[1721284809955,1e-06,64972.0,64971.0,3.27002506]
[1721284810460,1e-06,64972.0,64971.0,3.27004915]
[1721284810923,1e-06,64972.0,64971.0,3.08936901]
[1721284811136,1e-06,64972.0,64971.0,3.27004696]
[1721284813577,1e-06,64972.0,64971.0,3.27011715]
[1721284816612,1e-06,64972.0,64971.0,3.57852129]
[1721284819796,1e-06,64972.0,64971.0,3.57792714]
[1721284820031,0.142601,64972.0,64971.0,3.57792714]
[1721284820274,0.142601,64972.0,64971.0,3.45805859]
[1721284820498,0.142601,64972.0,64971.0,3.52795859]
[1721284822071,0.142601,64972.0,64971.0,3.51395859]
[1721284822490,0.142601,64972.0,64971.0,3.52795859]
[1721284822706,0.142601,64972.0,64971.0,3.51395859]
[1721284822933,0.142601,64972.0,64971.0,3.56431706]
[1721284823161,0.142601,64972.0,64971.0,3.57831706]
[1721284823605,0.142601,64972.0,64971.0,3.50841706]
[1721284823835,0.142601,64972.0,64971.0,3.56431706]
[1721284824324,0.142601,64972.0,64971.0,3.57831706]
[1721284825436,0.09232921,64998.0,64988.0,0.2]
[1721284825678,0.00835,65000.0,64996.0,0.307711]
[1721284825679,0.0623,64997.0,64996.0,0.307711]
[1721284825922,0.0623,64997.0,64996.0,1.23136974]
[1721284826135,0.0623,64997.0,64996.0,1.05140803]
[1721284826348,0.0623,64997.0,64996.0,1.05952606]
[1721284827251,0.0623,64997.0,64996.0,1.06452606]
[1721284828244,0.0623,64997.0,64996.0,1.06952606]
[1721284828448,0.0623,64997.0,64996.0,1.06953216]
[1721284828449,0.1441,64997.0,64996.0,1.06953216]
[1721284829750,0.1441,64997.0,64996.0,0.94177677]
[1721284829955,0.1441,64997.0,64996.0,1.06953381]
[1721284830168,0.1441,64997.0,64996.0,0.17197303]
[1721284830169,0.214,64997.0,64996.0,0.17197303]
[1721284830591,0.214,64997.0,64980.0,0.466]
[1721284830592,0.0755,64994.0,64980.0,0.466]
[1721284830800,0.307713,64996.0,64981.0,0.28166772]
[1721284830801,0.0601,64984.0,64981.0,0.28166772]
[1721284831013,0.2055,64983.0,64982.0,0.153888]
[1721284831217,0.25167536,64983.0,64982.0,0.153888]
[1721284831445,0.2055,64983.0,64982.0,0.153888]
[1721284831659,0.25166504,64983.0,64982.0,0.153888]
[1721284832293,0.25166479,64983.0,64982.0,0.153888]
[1721284832722,0.1356,64983.0,64982.0,0.153888]
[1721284832924,0.1356,64983.0,64982.0,0.461665]
[1721284834168,0.1356,64983.0,64982.0,0.466665]
[1721284834372,0.1366,64983.0,64982.0,0.472665]
[1721284834501,0.1356,64983.0,64982.0,0.466665]
[1721284834917,0.1356,64983.0,64982.0,0.471665]
[1721284838058,0.1356,64983.0,64982.0,0.47912296]
[1721284849002,0.0619,64986.0,64985.0,0.461644]
[1721284849248,0.0619,64986.0,64985.0,0.92378874]
[1721284849249,0.1383,64986.0,64985.0,0.92378874]
[1721284849493,0.1383,64986.0,64985.0,1.3089212]
[1721284850362,0.1383,64986.0,64985.0,1.3109212]
[1721284850575,0.1383,64986.0,64985.0,1.3129212]
[1721284853107,0.1383,64986.0,64985.0,0.9352582]
[1721284854024,0.2082,64986.0,64985.0,0.9352582]
[1721284855988,0.1383,64986.0,64985.0,0.9352582]
[1721284862377,0.1383,64986.0,64985.0,1.2430212]
[1721284862602,0.0764,64986.0,64985.0,1.2430212]
[1721284862801,0.0699,64994.0,64988.0,0.769372]
[1721284862802,0.1413,64989.0,64988.0,0.769372]
[1721284863031,0.1413,64989.0,64988.0,0.92375374]
[1721284863266,0.1413,64989.0,64988.0,0.93121596]
[1721284864146,0.1433,64989.0,64988.0,0.93121596]
[1721284864602,0.1433,64989.0,64988.0,1.23896496]
[1721284865898,0.0825,64989.0,64988.0,1.23896496]
[1721284869837,0.0805,64989.0,64988.0,1.23896496]
[1721284870732,0.0785,64989.0,64988.0,1.23896496]
[1721284870950,0.0621,64991.0,64990.0,0.769347]
[1721284871172,0.0621,64991.0,64990.0,0.92372874]
[1721284871393,0.0621,64991.0,64990.0,0.93119096]
[1721284872514,0.0661,64991.0,64990.0,0.93119096]
[1721284876699,0.0641,64991.0,64990.0,0.93119096]
[1721284877169,0.0661,64991.0,64990.0,0.93119096]
[1721284877382,0.0641,64991.0,64990.0,0.93119096]
[1721284877814,0.0661,64991.0,64990.0,0.93119096]
[1721284882370,0.0641,64991.0,64990.0,0.93119096]
[1721284882574,0.0641,64991.0,64990.0,0.93219096]
[1721284883848,0.10821989,64991.0,64990.0,0.93219096]
[1721284884065,0.0621,64991.0,64990.0,0.93319096]
[1721284884508,0.10821989,64991.0,64990.0,0.93319096]
[1721284885592,0.1082296,64991.0,64990.0,0.93319096]
[1721284885999,0.10822969,64991.0,64990.0,0.62545196]
[1721284887279,0.18892954,64991.0,64990.0,0.00946222]
[1721284887520,0.76796039,64991.0,64990.0,0.00946222]
[1721284887736,0.675701,64991.0,64990.0,0.002]
[1721284887956,0.78565852,64991.0,64990.0,0.002]
[1721284888428,0.78565852,64991.0,64990.0,0.001]
[1721284888631,0.675701,64991.0,64990.0,0.001]
[1721284888868,0.678701,64991.0,64990.0,0.001]
[1721284889075,0.15387,64990.0,64985.0,0.000913]
[1721284889285,0.11604114,64986.0,64985.0,0.000913]
[1721284889504,0.26324114,64986.0,64985.0,0.000913]
[1721284890136,0.26324114,64986.0,64985.0,0.154794]
[1721284890544,0.2171,64986.0,64985.0,0.154794]
[1721284890755,0.1472,64986.0,64985.0,0.154794]
[1721284891164,0.0833,64986.0,64985.0,0.61693874]
[1721284891368,0.12944114,64986.0,64985.0,0.61693874]
[1721284891600,0.0833,64986.0,64985.0,0.61693874]
[1721284891985,0.0833,64986.0,64985.0,0.61793874]
[1721284892196,0.0833,64986.0,64985.0,0.61993874]
[1721284893828,0.04614114,64987.0,64986.0,0.153879]
[1721284894031,0.04614114,64988.0,64987.0,0.153876]
[1721284895095,0.14613867,64990.0,64989.0,0.153872]
[1721284895513,0.14613886,64990.0,64989.0,0.153872]
[1721284895730,0.14613886,64990.0,64989.0,0.46907818]
[1721284896380,0.14813886,64990.0,64989.0,0.46907818]
[1721284897253,0.14813886,64990.0,64989.0,0.93120392]
[1721284897254,0.07123886,64990.0,64989.0,0.93120392]
[1721284897464,0.002,64990.0,64989.0,0.93120392]
[1721284897681,0.005,64990.0,64989.0,0.93120392]
[1721284901877,0.005,64990.0,64989.0,1.23894792]
[1721284920858,0.005,64990.0,64989.0,1.8853578]
[1721284921077,0.005,64990.0,64989.0,1.9853578]
[1721284921730,0.00083,64996.0,64995.0,1.077002]
[1721284921957,0.00083,64996.0,64995.0,1.50254962]
[1721284922181,0.00083,64996.0,64995.0,1.50998878]
[1721284922892,0.00083,64996.0,64995.0,1.3822229]
[1721284923118,0.00083,64996.0,64995.0,1.50996533]
[1721284923588,0.00083,64996.0,64995.0,1.51896423]
[1721284924964,0.00083,64996.0,64995.0,1.52896423]
[1721284926274,0.00083,64996.0,64995.0,1.52896445]
[1721284928969,0.00083,64996.0,64995.0,1.83667945]
[1721284929409,0.00083,64996.0,64995.0,1.83667599]
[1721284929851,0.00083,64996.0,64995.0,1.93667599]
[1721284931658,0.00083,64996.0,64995.0,1.98532999]
[1721284931882,0.00083,64996.0,64995.0,1.97632999]
[1721284932111,0.00083,64996.0,64995.0,1.94167599]
[1721284932338,0.00083,64996.0,64995.0,1.8139379]
[1721284932568,0.00083,64996.0,64995.0,2.0015671]
[1721284933041,0.00083,64996.0,64995.0,2.01156878]
[1721284933490,0.00083,64996.0,64995.0,2.00156878]
[1721284933905,0.00083,64996.0,64995.0,2.01556878]
[1721284935490,0.00083,64996.0,64995.0,2.06422278]
[1721284935701,0.00083,64996.0,64995.0,2.01556927]
[1721284937207,0.00083,65001.0,64999.0,1.584636]
[1721284937208,0.00501,65000.0,64999.0,1.584636]
[1721284937392,0.00501,65000.0,64999.0,1.86674911]
[1721284937628,0.00501,65000.0,64999.0,2.01024911]
[1721284937841,0.00501,65000.0,64999.0,2.01766682]
[1721284938971,0.00501,65000.0,64999.0,2.11766682]
[1721284939233,0.00501,65000.0,64999.0,2.13166682]
[1721284939678,0.00501,65000.0,64999.0,2.43936382]
[1721284939889,0.00501,65000.0,64999.0,2.48936382]
[1721284940096,0.00501,65000.0,64999.0,2.43936382]
[1721284940339,0.00501,65000.0,64999.0,2.50336382]
[1721284940579,0.00083,65001.0,65000.0,2.416556]
[1721284940817,1e-06,65001.0,65000.0,3.0863299]
[1721284941059,1e-06,65001.0,65000.0,4.80343575]
[1721284941809,1e-06,65001.0,65000.0,4.67570438]
[1721284942026,1e-06,65001.0,65000.0,4.82640281]
[1721284942489,1e-06,65001.0,65000.0,4.80066687]
[1721284942711,1e-06,65001.0,65000.0,4.76601287]
[1721284942936,1e-06,65001.0,65000.0,4.81466687]
[1721284943602,1e-06,65001.0,65000.0,4.80066687]
[1721284943819,1e-06,65001.0,65000.0,4.81466687]
[1721284944651,1e-06,65001.0,65000.0,4.77722608]
[1721284944864,1e-06,65006.0,65005.0,1.909824]
[1721284945089,1e-06,65006.0,65005.0,2.36179616]
[1721284945302,1e-06,65006.0,65005.0,2.80496321]
[1721284945541,1e-06,65006.0,65005.0,2.86376226]
[1721284946626,1e-06,65006.0,65005.0,2.87776226]
[1721284946850,1e-06,65006.0,65005.0,2.89176226]
[1721284947264,1e-06,65006.0,65005.0,2.87776226]
[1721284947718,1e-06,65006.0,65005.0,2.89176226]
[1721284948165,1e-06,65006.0,65005.0,2.8917594]
[1721284949016,1e-06,65006.0,65005.0,2.76407184]
[1721284949226,1e-06,65006.0,65005.0,4.26407184]
[1721284950106,1e-06,65006.0,65005.0,2.76407184]
[1721284950527,1e-06,65006.0,65005.0,2.70022679]
[1721284950753,0.003341,65021.0,65020.0,1.584186]
[1721284950965,0.003341,65021.0,65020.0,2.02436774]
[1721284951184,0.003341,65021.0,65020.0,2.06257243]
[1721284951424,0.003341,65021.0,65020.0,2.37016943]
[1721284951635,0.003341,65021.0,65020.0,2.41882343]
[1721284951896,0.003341,65021.0,65020.0,2.37016943]
[1721284952147,0.003341,65021.0,65020.0,2.38216943]
[1721284952364,0.003341,65021.0,65020.0,2.49426422]
[1721284952571,0.003341,65021.0,65020.0,2.47026422]
[1721284952773,0.003341,65021.0,65020.0,2.42161022]
[1721284952984,0.003341,65021.0,65020.0,2.44826422]
[1721284953200,0.003341,65021.0,65020.0,1.95621322]
[1721284953637,0.003341,65021.0,65020.0,1.97467243]
[1721284956761,0.003341,65021.0,65020.0,1.39717543]
[1721284956985,0.142041,65021.0,65020.0,1.52485938]
[1721284957650,0.142041,65021.0,65020.0,1.49400938]
[1721284958060,0.142041,65021.0,65020.0,1.36632543]
[1721284961535,0.142041,65021.0,65020.0,1.49401956]
[1721284963007,0.142041,65021.0,65020.0,1.36632543]
[1721284963209,0.142041,65021.0,65020.0,1.49401934]
[1721284966734,0.142041,65021.0,65020.0,1.36632543]
[1721284966969,0.142041,65021.0,65020.0,1.49402042]
[1721284969365,0.142041,65021.0,65020.0,1.18642342]
[1721284969585,0.6875331,65021.0,65020.0,0.03535469]
[1721284969819,0.6875331,65021.0,65020.0,0.028]
[1721284970036,0.9951251,65021.0,65020.0,0.028]
[1721284970498,0.9951251,65021.0,65020.0,0.014]
[1721284970749,0.9951251,65021.0,65020.0,0.09404718]
[1721284970962,0.9951251,65021.0,65020.0,0.10004718]
[1721284971459,0.9951251,65021.0,65020.0,0.09404718]
[1721284971883,0.9951251,65021.0,65020.0,0.09496018]
[1721284972963,0.9961251,65021.0,65020.0,0.09496018]
[1721284973665,0.981921,65021.0,65020.0,0.09496018]
[1721284974308,0.912021,65021.0,65020.0,0.09496018]
[1721284974518,0.981921,65021.0,65020.0,0.09496018]
[1721284975407,0.143041,65021.0,65020.0,0.09496018]
[1721284975638,0.143041,65021.0,65020.0,0.1016841]
[1721284975864,0.212941,65021.0,65020.0,0.1016841]
[1721284976564,0.366737,65021.0,65020.0,0.1016841]
[1721284976799,0.366737,65021.0,65020.0,0.09496018]
[1721284977038,0.366737,65021.0,65020.0,0.1016841]
[1721284977486,0.674329,65021.0,65020.0,0.1016841]
[1721284979387,0.366737,65021.0,65020.0,0.1016841]
[1721284979607,0.366737,65021.0,65020.0,0.09496018]
[1721284980733,0.674329,65021.0,65020.0,0.09496018]
[1721284980961,0.69462074,65021.0,65020.0,0.09496018]
[1721284981172,0.62472074,65021.0,65020.0,0.1016841]
[1721284981401,0.366737,65021.0,65020.0,0.09496018]
[1721284981599,0.366737,65021.0,65020.0,0.1016841]
[1721284982052,0.212941,65021.0,65020.0,0.09496018]
[1721284982273,0.212941,65021.0,65020.0,0.71073692]
[1721284982274,0.143041,65021.0,65020.0,0.71073692]
[1721284982495,0.079341,65021.0,65020.0,1.01833392]
[1721284982736,0.004341,65021.0,65020.0,1.02505784]
[1721284983170,0.004341,65021.0,65020.0,1.41215484]
[1721284983388,0.004341,65021.0,65020.0,1.33265484]
[1721284983826,0.005341,65021.0,65020.0,1.33265484]
[1721284984346,0.003341,65021.0,65020.0,1.33365484]
[1721284984568,0.003341,65021.0,65020.0,1.34365484]
[1721284985015,0.003341,65021.0,65020.0,1.42285484]
[1721284985228,0.003341,65021.0,65020.0,1.43385484]
[1721284985883,0.003341,65021.0,65020.0,1.42285484]
[1721284986100,0.003341,65021.0,65020.0,1.49155484]
[1721284986322,0.003341,65021.0,65020.0,1.59155484]
[1721284986538,0.003341,65021.0,65020.0,1.58055484]
[1721284987187,0.003341,65021.0,65020.0,2.01584373]
[1721284987407,0.003341,65021.0,65020.0,2.22484373]
[1721284987832,0.003341,65021.0,65020.0,2.21684373]
[1721284988038,0.003341,65021.0,65020.0,2.09915184]
[1721284988264,0.003341,65021.0,65020.0,2.25765975]
[1721284988928,0.003341,65021.0,65020.0,2.24865975]
[1721284989399,0.003341,65021.0,65020.0,2.26265975]
[1721284989855,0.003341,65021.0,65020.0,2.27665975]
[1721284990064,0.003341,65021.0,65020.0,2.58425675]
[1721284990286,0.003341,65021.0,65020.0,2.63569754]
[1721284990542,0.003341,65021.0,65020.0,2.62569754]
[1721284990764,0.003341,65021.0,65020.0,2.34963571]
[1721284990980,0.003341,65021.0,65020.0,2.26665975]
[1721284991205,0.003341,65021.0,65020.0,2.25264874]
[1721284991413,0.003341,65021.0,65020.0,2.25265263]
[1721284991653,0.003341,65021.0,65020.0,2.26665263]
[1721284991867,0.003341,65021.0,65020.0,1.81915563]
[1721284993284,0.003341,65021.0,65020.0,1.69147484]
[1721284997593,0.003341,65021.0,65020.0,1.66065484]
[1721284999443,0.003341,65021.0,65020.0,1.74065484]
[1721284999635,0.003341,65021.0,65020.0,1.86834501]
[1721284999855,0.003341,65021.0,65020.0,1.74065484]
[1721285001022,0.003341,65021.0,65020.0,2.20676416]
[1721285001247,0.003341,65021.0,65020.0,2.27026416]
[1721285001703,0.003341,65021.0,65020.0,3.77026416]
[1721285001985,0.003341,65021.0,65020.0,2.27026416]
[1721285002395,0.003341,65021.0,65020.0,2.50026416]
[1721285002672,0.003341,65021.0,65020.0,2.45026416]
[1721285003853,0.003341,65021.0,65020.0,2.45024728]
[1721285004079,0.003341,65021.0,65020.0,2.50024728]
[1721285004562,0.003341,65021.0,65020.0,2.45024728]
[1721285005465,0.003341,65021.0,65020.0,2.50024728]
[1721285005685,0.003341,65021.0,65020.0,2.55156307]
[1721285005904,0.003341,65021.0,65020.0,2.19396607]
[1721285006163,0.003341,65021.0,65020.0,2.14265028]
[1721285006422,0.003341,65021.0,65020.0,1.81915028]
[1721285006902,0.003341,65021.0,65020.0,1.69147484]
[1721285007129,0.003341,65021.0,65020.0,1.74685659]
[1721285007373,0.003341,65021.0,65020.0,1.28074872]
[1721285008331,0.003341,65021.0,65020.0,1.26674872]
[1721285009018,0.003341,65021.0,65020.0,1.25274872]
[1721285009232,0.003341,65021.0,65020.0,1.26674872]
[1721285009711,0.003341,65021.0,65020.0,1.25274872]
[1721285009943,0.003341,65021.0,65020.0,1.27774872]
[1721285010186,0.003341,65021.0,65020.0,1.58534572]
[1721285010394,0.003341,65021.0,65020.0,1.57134572]
[1721285010630,0.003341,65021.0,65020.0,1.58334572]
[1721285011543,0.003341,65021.0,65020.0,1.71104541]
[1721285011766,0.003341,65021.0,65020.0,1.99354541]
[1721285012208,0.003341,65021.0,65020.0,1.91104541]
[1721285013078,0.003341,65021.0,65020.0,1.78334572]
[1721285013306,0.003341,65021.0,65020.0,1.91103699]
[1721285016314,0.003341,65021.0,65020.0,1.91102701]
[1721285016820,0.003341,65021.0,65020.0,2.09094272]
[1721285017030,0.003341,65021.0,65020.0,1.91102952]
[1721285017756,0.003341,65021.0,65020.0,1.91103541]
[1721285019642,0.003341,65021.0,65020.0,1.91103674]
[1721285019880,0.003341,65021.0,65020.0,1.91203674]
[1721285021913,0.003341,65021.0,65020.0,2.21963374]
[1721285022167,0.003341,65021.0,65020.0,1.91203674]
[1721285022647,0.003341,65021.0,65020.0,2.09194286]
[1721285022889,0.003341,65021.0,65020.0,2.07993777]
[1721285023328,0.003341,65021.0,65020.0,2.09393777]
[1721285023549,0.003341,65021.0,65020.0,2.08293777]
[1721285023812,0.003341,65021.0,65020.0,2.06893777]
[1721285024037,0.003341,65021.0,65020.0,2.09593777]
[1721285024523,0.003341,65021.0,65020.0,2.08293777]
[1721285024742,0.003341,65021.0,65020.0,2.09693777]
[1721285024965,0.003341,65021.0,65020.0,1.78934077]
[1721285025891,0.003341,65021.0,65020.0,1.66165484]
[1721285026117,0.003341,65021.0,65020.0,2.09693885]
[1721285026384,0.003341,65021.0,65020.0,1.96925184]
[1721285026592,0.003341,65021.0,65020.0,2.09693832]
[1721285027077,0.003341,65021.0,65020.0,1.78934132]
[1721285029213,0.003341,65021.0,65020.0,1.78934178]
[1721285035408,0.003341,65021.0,65020.0,1.66165484]
[1721285035633,0.003341,65021.0,65020.0,1.78934191]
[1721285038650,0.003341,65021.0,65020.0,1.66165484]
[1721285038921,0.003341,65021.0,65020.0,1.78934189]
[1721285039401,0.003341,65021.0,65020.0,2.09693889]
[1721285040557,0.003341,65021.0,65020.0,1.78934189]
[1721285041275,0.003341,65021.0,65020.0,1.78934185]
[1721285042430,0.003341,65021.0,65020.0,2.16893885]
[1721285042887,0.003341,65021.0,65020.0,2.30693885]
[1721285043587,0.003341,65021.0,65020.0,2.35693885]
[1721285043851,0.003341,65021.0,65020.0,2.30693885]
[1721285044296,0.003341,65021.0,65020.0,2.30693094]
[1721285045049,0.140541,65021.0,65020.0,1.86133393]
[1721285046012,0.079841,65021.0,65020.0,1.86133393]
[1721285047604,0.079841,65021.0,65020.0,1.86134195]
[1721285047861,0.079841,65021.0,65020.0,1.92614195]
[1721285047862,0.003341,65021.0,65020.0,1.92614195]
[1721285048334,0.003341,65021.0,65020.0,2.00254195]
[1721285048784,0.003341,65021.0,65020.0,2.31013895]
[1721285049694,0.003341,65021.0,65020.0,2.36013895]
[1721285049943,0.003341,65021.0,65020.0,2.31013895]
[1721285050461,0.003341,65021.0,65020.0,2.23813895]
[1721285050713,0.003341,65021.0,65020.0,2.11045184]
[1721285050950,0.003341,65021.0,65020.0,2.23813099]
[1721285051662,0.003341,65021.0,65020.0,2.28813099]
[1721285051887,0.003341,65021.0,65020.0,2.33529436]
[1721285052572,0.003341,65021.0,65020.0,2.23813099]
[1721285052793,0.003341,65021.0,65020.0,2.28397857]
[1721285053014,0.003341,65021.0,65020.0,2.23813099]
[1721285053912,0.003341,65021.0,65020.0,2.11045184]
[1721285054112,0.003341,65021.0,65020.0,2.23812981]
[1721285054512,0.003341,65021.0,65020.0,2.28397689]
[1721285054513,0.003341,65021.0,65020.0,2.2839798]
[1721285055597,0.003341,65021.0,65020.0,1.7893327]
[1721285057229,0.003341,65021.0,65020.0,1.78933855]
[1721285057442,0.078541,65021.0,65020.0,1.78933855]
[1721285060205,0.078541,65021.0,65020.0,1.78934333]
[1721285063168,0.078541,65021.0,65020.0,1.58934333]
[1721285064051,0.078541,65021.0,65020.0,1.46165484]
[1721285064270,0.078541,65021.0,65020.0,1.58935279]
[1721285071823,0.1578851,65021.0,65020.0,0.41218005]
[1721285072076,0.19007678,65021.0,65020.0,0.1306841]
[1721285072284,0.215941,65021.0,65020.0,0.1306841]
[1721285072713,0.215941,65021.0,65020.0,0.1166841]
[1721285072714,0.28514467,65021.0,65020.0,0.1166841]
[1721285072923,0.28512567,65021.0,65020.0,0.1026841]
[1721285073132,0.143941,65021.0,65020.0,0.2604821]
[1721285073360,0.143941,65021.0,65020.0,0.2584821]
[1721285073601,0.143941,65021.0,65020.0,1.33565484]
[1721285075095,0.143941,65021.0,65020.0,1.33765484]
[1721285080550,0.143941,65021.0,65020.0,1.33565484]
[1721285081002,0.003341,65021.0,65020.0,2.08175797]
[1721285081230,0.003341,65021.0,65020.0,2.16057797]
[1721285081455,0.003341,65021.0,65020.0,2.16657797]
[1721285081911,0.003341,65021.0,65020.0,2.16857797]
[1721285082365,0.003341,65021.0,65020.0,2.27457797]
[1721285082587,0.003341,65021.0,65020.0,2.27455497]
[1721285082798,0.003341,65021.0,65020.0,2.35013097]
[1721285083035,0.003341,65021.0,65020.0,2.17244784]
[1721285083246,0.003341,65021.0,65020.0,2.30013097]
[1721285083895,0.003341,65021.0,65020.0,2.31013097]
[1721285084109,0.003341,65021.0,65020.0,2.29213097]
[1721285084540,0.003341,65021.0,65020.0,2.30613097]
[1721285085781,0.003341,65021.0,65020.0,2.35613097]
[1721285085992,0.003341,65021.0,65020.0,2.30613097]
[1721285086951,0.003341,65021.0,65020.0,1.98933097]
[1721285087633,0.003341,65021.0,65020.0,2.13163097]
[1721285088544,0.003341,65021.0,65020.0,2.11763097]
[1721285088780,0.003341,65021.0,65020.0,2.00394784]
[1721285089004,0.003341,65021.0,65020.0,2.13163261]
[1721285089465,0.003341,65021.0,65020.0,2.11763261]
[1721285089674,0.003341,65021.0,65020.0,2.13163261]
[1721285090833,0.003341,65021.0,65020.0,2.43922961]
[1721285091969,0.003341,65021.0,65020.0,2.43922917]
[1721285092739,0.003341,65021.0,65020.0,2.43922815]
[1721285095253,0.003341,65021.0,65020.0,2.31154484]
[1721285095482,0.003341,65021.0,65020.0,2.56690863]
[1721285095720,0.003341,65021.0,65020.0,2.79690863]
[1721285098460,0.003341,65021.0,65020.0,2.66922673]
[1721285098689,0.003341,65021.0,65020.0,2.79689724]